fUSD/lending_fUSD_20241024
["ID","MTS","AMOUNT","RATE_DAILY","PERIOD"]
[340774187,1729793444045,-500.0,0.00062465,120]
[340774188,1729793444054,-500.0,0.00062465,120]
[340774189,1729793444063,-367.19680877,0.00062465,120]
[340774190,1729793444076,-129.35319123,0.00062465,120]
[340774191,1729793444085,-155.48211299,0.00062465,120]
[340774192,1729793444096,-344.51788701,0.00062465,120]
[340774193,1729793444105,-153.38608051,0.00062465,120]
[340774195,1729793446122,-172.03973626,0.00054043,28]
[340774196,1729793446132,-346.61391949,0.00062465,120]
[340774197,1729793446142,-500.0,0.00062465,120]
[340774198,1729793446153,-500.0,0.00062465,120]
[340774199,1729793446163,-500.0,0.00062465,120]
[340774200,1729793446172,-507.80783777,0.00062465,120]
[340774201,1729793446182,-151.0,0.00062465,120]
[340774202,1729793446192,-151.0,0.00062465,120]
[340774203,1729793446201,-349.24514648,0.00062465,120]
[340774206,1729793446931,-150.75485352,0.00062465,120]
[340774207,1729793446940,-614.53110204,0.00062465,120]
[340774208,1729793446949,-151.0,0.00062465,120]
[340774209,1729793446958,-151.0,0.00062465,120]
[340774210,1729793446967,-151.0,0.00062465,120]
[340774211,1729793446977,-151.0,0.00062465,120]
[340774212,1729793446987,-500.0,0.00062465,120]
[340774213,1729793446997,-500.0,0.00062465,120]
[340774214,1729793447007,-500.0,0.00062465,120]
[340774215,1729793447016,-500.0,0.00062465,120]
[340774216,1729793447026,-500.0,0.00062465,120]
[340774217,1729793447037,-348.57775787,0.00062465,120]
[340774218,1729793447047,-603.77556368,0.00062465,120]
[340774219,1729793447057,-300.0,0.00062465,120]
[340774220,1729793447067,-500.0,0.00062465,120]
[340774221,1729793447076,-500.0,0.00062465,120]
[340774222,1729793447086,-500.0,0.00062465,120]
[340774223,1729793447096,-500.0,0.00062465,120]
[340774224,1729793447106,-500.0,0.00062465,120]
[340774225,1729793447115,-500.0,0.00062465,120]
[340774226,1729793447124,-500.0,0.00062465,120]
[340774227,1729793447137,-500.0,0.00062465,120]
[340774228,1729793447146,-500.0,0.00062465,120]
[340774229,1729793447156,-500.0,0.00062465,120]
[340774230,1729793447166,-303.40421409,0.00062465,120]
[340774231,1729793447176,-500.0,0.00062465,120]
[340774232,1729793447185,-500.0,0.00062465,120]
[340774233,1729793447195,-500.0,0.00062465,120]
[340774235,1729793447205,-500.0,0.00062465,120]
[340774236,1729793447214,-500.0,0.00062465,120]
[340774237,1729793447224,-227.41581648,0.00062465,120]
[340774238,1729793447233,-500.0,0.00062465,120]
[340774239,1729793447243,-500.0,0.00062465,120]
[340774240,1729793447253,-500.0,0.00062465,120]
[340774241,1729793447262,-500.0,0.00062465,120]
[340774242,1729793447272,-500.0,0.00062465,120]
[340774243,1729793447283,-500.0,0.00062465,120]
[340774244,1729793447292,-500.0,0.00062465,120]
[340774245,1729793447302,-500.0,0.00062465,120]
[340774247,1729793447312,-500.0,0.00062465,120]
[340774248,1729793447321,-500.0,0.00062465,120]
[340774249,1729793447331,-500.0,0.00062465,120]
[340774251,1729793447340,-500.0,0.00062465,120]
[340774253,1729793447350,-500.0,0.00062465,120]
[340774254,1729793447359,-500.0,0.00062465,120]
[340774256,1729793447368,-500.0,0.00062465,120]
[340774257,1729793447377,-365.79016283,0.00062465,120]
[340774259,1729793447386,-500.0,0.00062465,120]
[340774260,1729793447396,-500.0,0.00062465,120]
[340774261,1729793447405,-500.0,0.00062465,120]
[340774262,1729793447414,-230.12,0.00062465,120]
[340774263,1729793447424,-500.0,0.00062465,120]
[340774264,1729793447434,-500.0,0.00062465,120]
[340774265,1729793447443,-500.0,0.00062465,120]
[340774266,1729793447453,-500.0,0.00062465,120]
[340774267,1729793447462,-500.0,0.00062465,120]
[340774268,1729793447471,-488.4843612,0.00062465,120]
[340774269,1729793447481,-552.94390024,0.00062465,120]
[340774270,1729793447491,-500.0,0.00062465,120]
[340774271,1729793447501,-500.0,0.00062465,120]
[340774272,1729793447510,-500.0,0.00062465,120]
[340774273,1729793447520,-500.0,0.00062465,120]
[340774274,1729793447530,-500.0,0.00062465,120]
[340774275,1729793447540,-310.26046218,0.00062465,120]
[340774276,1729793447549,-500.0,0.00062465,120]
[340774277,1729793447559,-500.0,0.00062465,120]
[340774278,1729793447568,-500.0,0.00062465,120]
[340774279,1729793447578,-500.0,0.00062465,120]
[340774280,1729793447587,-500.0,0.00062465,120]
[340774281,1729793447596,-311.46633094,0.00062465,120]
[340774282,1729793461388,500.0,0.00014973,2]
[340774284,1729793543546,251.32,0.00012546,2]
[340774288,1729793617664,157.07,0.00015342,2]
[340774294,1729793805430,150.0,0.0001726,2]
[340774302,1729794308327,2882.93,0.00014,2]
[340774303,1729794308361,1499248.40148836,0.00014,2]
[340774304,1729794308397,7847374.71252876,0.00014,2]
[340774306,1729794417107,-261.9934412,0.000159,2]
[340774309,1729794435137,-191.0065588,0.000159,2]
[340774310,1729794435159,-157.07,0.000247,2]
[340774311,1729794435180,-250.9389568,0.000263,2]
[340774312,1729794435201,-2118.80831886,0.000264,2]
[340774314,1729794475861,472.92804734,0.00012579,2]
[340774315,1729794490857,716.2761405,0.00013,4]
[340774316,1729794497683,1098.21877366,0.00012899,2]
[340774327,1729794632242,-1918.86696003,0.0001499,2]
[340774328,1729794632259,-639.2284197,0.0001499,2]
[340774330,1729794632281,-17.76279294,0.0001499,2]
[340774332,1729794632290,-300.0,0.00014998,2]
[340774334,1729794632299,-15448.40723012,0.00014999,2]
[340774335,1729794632309,-474.69440051,0.00014999,2]
[340774336,1729794632319,-500.0,0.00014999,2]
[340774337,1729794632328,-239.17461389,0.00014999,2]
[340774338,1729794632338,-150.0,0.00014999,2]
[340774339,1729794632347,-13160.6707988,0.00015,2]
[340774340,1729794632359,-22364.27594662,0.00015,2]
[340774341,1729794632370,-6822.66290055,0.00015,2]
[340774342,1729794632381,-324.2343219,0.00015,2]
[340774343,1729794632392,-603.03497768,0.00015,2]
[340774344,1729794632404,-7059.5764686,0.00015,2]
[340774345,1729794632415,-544.02,0.00015,2]
[340774346,1729794632426,-140635.79436707,0.00015,2]
[340774347,1729794632439,-765.29022052,0.00015,2]
[340774348,1729794632455,-302.14414535,0.00015,2]
[340774349,1729794632467,-4057.61514411,0.00015,2]
[340774350,1729794632502,-1091.26357004,0.00015,2]
[340774351,1729794632524,-203573.07060017,0.00015,2]
[340774352,1729794632535,-2135.8388,0.00015,2]
[340774353,1729794632546,-10552.6900996,0.00015,2]
[340774354,1729794632557,-980.23063339,0.00015,2]
[340774355,1729794632569,-5599.02414876,0.00015,2]
[340774356,1729794632580,-3576.97871244,0.00015,2]
[340774357,1729794632592,-4477.92071747,0.00015,2]
[340774358,1729794632631,-5653.0,0.00015,2]
[340774368,1729794638425,-2275.30098722,0.00015,2]
[340774369,1729794638442,-19453.41639563,0.00015,2]
[340774370,1729794638604,-1018.16644036,0.00015,2]
[340774371,1729794638616,-736.91457578,0.00015,2]
[340774372,1729794638628,-539.40899683,0.00015,2]
[340774373,1729794638639,-445.42957939,0.00015,2]
[340774374,1729794638650,-53553.76090814,0.00015,2]
[340774375,1729794638660,-1000.0,0.00015,2]
[340774376,1729794638672,-410.82807031,0.00015,2]
[340774377,1729794638683,-603.15285,0.00015,2]
[340774378,1729794638723,-0.99998,0.00015,2]
[340774379,1729794638735,-544.61761896,0.00015,2]
[340774380,1729794638745,-670.91304256,0.00015,2]
[340774381,1729794638756,-343.05,0.00015,2]
[340774382,1729794638768,-1599.21665465,0.00015,2]
[340774385,1729794640412,-1822.53339675,0.00015,2]
[340774386,1729794640642,-1040.26083,0.00015,2]
[340774390,1729794643304,-2701.93156288,0.00015,2]
[340774392,1729794643316,-379.535,0.00015,2]
[340774395,1729794643328,-1405.7,0.00015,2]
[340774414,1729794643564,-428.8894702,0.00015,2]
[340774416,1729794643576,-7832.85836666,0.00015,2]
[340774449,1729794646268,-13251.11562182,0.00015,2]
[340774450,1729794646292,-830039.47764643,0.00015,2]
[340774451,1729794646305,-1665.89,0.00015,2]
[340774452,1729794646318,-281.74546058,0.00015,2]
[340774453,1729794646402,-55063.73631687,0.00015,2]
[340774454,1729794646413,-631.49999999,0.00015,2]
[340774455,1729794646425,-752.9375,0.00015,2]
[340774456,1729794646436,-17707.21582048,0.00015,2]
[340774457,1729794646449,-10199.23072715,0.00015,2]
[340774458,1729794646502,-608.21731146,0.00015,2]
[340774459,1729794646513,-255.00000002,0.00015,2]
[340774460,1729794646524,-3397.01544,0.00015,2]
[340774461,1729794646535,-1695.17649978,0.00015,2]
[340774509,1729794793014,250.0,0.0001,2]
[340774510,1729794794019,300.0,0.00012,2]
[340774511,1729794795133,350.0,0.00014,2]
[340774512,1729794855018,-153.52950061,0.000149,2]
[340774513,1729794906821,158.34545894,0.000149,2]
[340774514,1729794996817,688.12504045,0.000149,2]
[340774515,1729795410297,-150.0,0.00014686,2]
[340774516,1729795410319,-300.0,0.00014699,2]
[340774517,1729795410342,-300.0,0.00014699,2]
[340774518,1729795410366,-2440.0,0.000147,2]
[340774519,1729795593330,-150.0,0.00014694,2]
[340774520,1729795593352,-157.93534412,0.000147,2]
[340774521,1729795627131,-271.78238344,0.000147,2]
[340774537,1729795831459,-200.23831791,0.00014626,2]
[340774538,1729795831469,-249.0,0.00014699,2]
[340774539,1729795831479,-300.0,0.00014699,2]
[340774540,1729795831489,-2657.55627244,0.000147,2]
[340774541,1729795831499,-174.072,0.000147,2]
[340774542,1729795831508,-554.19687873,0.000147,2]
[340774543,1729795831517,-176.88285023,0.000149,2]
[340774544,1729795831527,-5737.96545283,0.000149,2]
[340774545,1729795831536,-500.09909309,0.00014973,2]
[340774546,1729795831546,-500.0,0.00014973,2]
[340774547,1729795831556,-500.0,0.00014973,2]
[340774548,1729795831565,-203.69854922,0.00014973,2]
[340774549,1729795831575,-816.93250539,0.00014999,2]
[340774550,1729795831585,-14439.13825595,0.00014999,2]
[340774551,1729795831597,-9006.78399145,0.00014999,2]
[340774552,1729795831606,-150.0,0.00014999,2]
[340774553,1729795831616,-53822.408175,0.00015,2]
[340774554,1729795831627,-6075.0,0.00015,2]
[340774555,1729795831648,-700.0,0.00015,2]
[340774556,1729795831660,-1460.46853907,0.00015,2]
[340774557,1729795831671,-893.6602403,0.00015,2]
[340774558,1729795831683,-661.82674922,0.00015,2]
[340774559,1729795831694,-499.915646,0.00015,2]
[340774560,1729795831706,-3133.18062,0.00015,2]
[340774561,1729795831717,-1096.40924013,0.00015,2]
[340774565,1729795837736,-0.99998,0.00015,2]
[340774566,1729795837748,-36202.54468481,0.00015,2]
[340774567,1729795837922,-270.88055,0.00015,2]
[340774588,1729795839809,-2839.5,0.00015,2]
[340774589,1729795839850,-262343.96818296,0.00015,2]
[340774598,1729795840136,-2272.41676883,0.00015,2]
[340774600,1729795840147,-1695.645405,0.00015,2]
[340774722,1729795842618,-455.770005,0.00015,2]
[340774723,1729795842630,-283.2200001,0.00015,2]
[340774724,1729795842642,-385.93653,0.00015,2]
[340774725,1729795842703,-34.2150382,0.00015,2]
[340774726,1729795842714,-264.85,0.00015,2]
[340774727,1729795842726,-5997.40570346,0.00015,2]
[340774728,1729795842742,-1323.44216416,0.00015,2]
[340774729,1729795842907,-0.09107124,0.00015,2]
[340774732,1729795842950,-1212.12517674,0.00015,2]
[340774733,1729795842962,-20150.10000092,0.00015,2]
[340774734,1729795842974,-16733.5706032,0.00015,2]
[340774815,1729795875333,361.13,0.0001499,3]
[340774816,1729796583768,17225.6223747,0.0001,2]
[340774817,1729796599673,250.0,0.0001,2]
[340774818,1729796600755,300.0,0.00012,2]
[340774819,1729796601861,350.0,0.00014,2]
[340774823,1729797031583,-399.78756047,0.00014562,2]
[340774824,1729797031628,-9.71786664,0.00014562,2]
[340774825,1729797031639,-612.05360268,0.000146,2]
[340774826,1729797031650,-1077.36052431,0.000146,2]
[340774827,1729797031659,-22.61191413,0.00014687,2]
[340774828,1729797031672,-127.38808587,0.00014687,2]
[340774829,1729797031682,-1207.88584404,0.000147,2]
[340774830,1729797031694,-3277.06115596,0.000147,2]
[340774831,1729797031704,-174.074,0.000147,2]
[340774832,1729797031714,-148.86484404,0.000149,2]
[340774833,1729797031725,-6.93973265,0.000149,2]
[340774834,1729797031735,-167.4652,0.000149,2]
[340774835,1729797031745,-6352.70396742,0.000149,2]
[340774836,1729797031754,-300.0,0.00014972,2]
[340774837,1729797031764,-497.90020039,0.00014973,2]
[340774838,1729797031773,-500.0,0.00014973,2]
[340774839,1729797031783,-500.0,0.00014973,2]
[340774840,1729797031792,-192.68175842,0.0001499,2]
[340774841,1729797031801,-150.0,0.00014997,2]
[340774842,1729797031811,-999.99,0.00014997,2]
[340774843,1729797031820,-723.67,0.00014997,2]
[340774847,1729797031970,-1415.06,0.00014997,2]
[340774849,1729797031980,-5000.0,0.00014998,2]
[340774851,1729797031990,-8572.79074139,0.00014998,2]
[340774853,1729797031999,-4575.09911218,0.00014998,2]
[340774855,1729797032011,-822.57088782,0.00014998,2]
[340774857,1729797032020,-500.0,0.00014999,2]
[340774859,1729797032030,-500.0,0.00014999,2]
[340774861,1729797032039,-500.0,0.00014999,2]
[340774862,1729797032049,-450.27242397,0.00014999,2]
[340774865,1729797032061,-49.72757603,0.00014999,2]
[340774866,1729797032070,-443.07563709,0.00014999,2]
[340774869,1729797032082,-56.92436291,0.00014999,2]
[340774871,1729797032091,-500.0,0.00014999,2]
[340774873,1729797032100,-546.3929156,0.00014999,2]
[340774875,1729797032110,-500.0,0.00014999,2]
[340774877,1729797032119,-500.0,0.00014999,2]
[340774879,1729797032128,-500.0,0.00014999,2]
[340774881,1729797032138,-500.0,0.00014999,2]
[340774883,1729797032147,-83.21752212,0.00014999,2]
[340774885,1729797032159,-416.78247788,0.00014999,2]
[340774887,1729797032168,-500.68734814,0.00014999,2]
[340774889,1729797032178,-500.0,0.00014999,2]
[340774891,1729797032186,-157.18290822,0.00014999,2]
[340774892,1729797032196,-195.21364554,0.00014999,2]
[340774893,1729797032205,-500.0,0.00014999,2]
[340774894,1729797032214,-274.98855797,0.00014999,2]
[340774895,1729797032223,-3733.22962121,0.00014999,2]
[340774896,1729797032235,-1249.78872132,0.00014999,2]
[340774897,1729797032247,-752.17210597,0.00014999,2]
[340774898,1729797032258,-1126.9195515,0.00014999,2]
[340774899,1729797032268,-299.99,0.00014999,2]
[340774900,1729797032278,-664.15,0.00014999,2]
[340774901,1729797032287,-6123.09,0.00014999,2]
[340774902,1729797032296,-179.99,0.00014999,2]
[340774903,1729797032312,-1275.37034034,0.00015,2]
[340774904,1729797032323,-270.54903608,0.00015,2]
[340774905,1729797032334,-393.3952172,0.00015,2]
[340774906,1729797032344,-6246.33253183,0.00015,2]
[340774907,1729797032356,-7776.89948567,0.00015,2]
[340774908,1729797032371,-1112.92161359,0.00015,2]
[340774909,1729797032383,-555.249,0.00015,2]
[340774910,1729797032395,-378.25609224,0.00015,2]
[340774911,1729797032406,-1902.48145893,0.00015,2]
[340774912,1729797032417,-431.15035491,0.00015,2]
[340774913,1729797032432,-708.37510164,0.00015,2]
[340774914,1729797032443,-814.99724662,0.00015,2]
[340774915,1729797032454,-4507.06363913,0.00015,2]
[340774916,1729797032465,-1080.79234568,0.00015,2]
[340774917,1729797032476,-1028.79,0.00015,2]
[340774923,1729797037865,-10055.82085768,0.00015,2]
[340774924,1729797037876,-577847.40020463,0.00015,2]
[340774925,1729797037887,-268818.01533696,0.00015,2]
[340774926,1729797037897,-32757.21,0.00015,2]
[340774927,1729797037906,-208.85,0.00015,2]
[340774928,1729797037915,-387.69,0.00015,2]
[340774929,1729797037925,-160.77,0.00015342,2]
[340774930,1729797037934,-161.33,0.00015342,2]
[340774931,1729797037943,-157.07,0.00015342,2]
[340774932,1729797037953,-3760.28,0.00015794,2]
[340774933,1729797037963,-202.7935973,0.000159,2]
[340774934,1729797037972,-400.0,0.00016,2]
[340774935,1729797037981,-156.08,0.00016089,2]
[340774936,1729797037990,-150.0,0.00016122,2]
[340774937,1729797038000,-454.0,0.000162,2]
[340774938,1729797038009,-420.0,0.00016386,2]
[340774939,1729797038019,-606.34,0.00016463,2]
[340774940,1729797038029,-23900.0,0.00016648,2]
[340774941,1729797038039,-2751.0,0.00016648,2]
[340774942,1729797038048,-176.05001175,0.00016648,2]
[340774943,1729797038057,-3385.02,0.00017185,2]
[340774944,1729797038067,-3011.64,0.00017586,2]
[340774945,1729797038076,-336.55,0.00017727,2]
[340774946,1729797038086,-587.0,0.00017934,2]
[340774947,1729797038096,-250.0,0.00017969,2]
[340774948,1729797038105,-250.0,0.00018375,2]
[340774949,1729797038115,-471.23,0.00018894,2]
[340774950,1729797038125,-286.0,0.00019628,2]
[340774951,1729797038134,-4097.65,0.00020174,2]
[340774953,1729797038144,-3291.93,0.00020583,2]
[340774955,1729797038153,-6352.70396742,0.00020678,2]
[340774956,1729797038162,-155.80457662,0.00022043,2]
[340774957,1729797038173,-156.08,0.00024691,2]
[340774958,1729797038182,-155.15,0.0002626,2]
[340774959,1729797038192,-1344.64603658,0.000264,2]
[340774960,1729797038202,-157.07,0.00026401,2]
[340774961,1729797038212,-471.23,0.00026452,2]
[340774963,1729797038222,-6352.70396742,0.00026456,2]
[340774965,1729797038232,-1000.0,0.00026573,2]
[340774966,1729797038242,-907.27,0.00028321,2]
[340774967,1729797038251,-900.0,0.00028449,2]
[340774968,1729797038260,-150.0,0.00028486,2]
[340774969,1729797038270,-964.53,0.00028712,2]
[340774970,1729797038280,-181.47,0.00028717,2]
[340774971,1729797038289,-1759.21,0.00029,3]
[340774972,1729797038300,-155.80457662,0.00029186,2]
[340774973,1729797038314,-159.87,0.00029323,2]
[340774974,1729797038325,-1000.0,0.00029895,2]
[340774975,1729797038334,-596.5,0.0003,3]
[340774976,1729797038345,-14640.04019991,0.0003,2]
[340774977,1729797038355,-157.0,0.00030355,5]
[340774978,1729797038365,-2363.13,0.00030607,2]
[340774979,1729797038375,-159.87,0.00030789,2]
[340774980,1729797038385,-156.88,0.0003081,2]
[340774981,1729797038395,-250.0,0.00030957,2]
[340774982,1729797038405,-764.02,0.00030965,2]
[340774983,1729797038414,-6352.70396742,0.00032233,15]
[340774984,1729797038423,-159.87,0.00032256,2]
[340774985,1729797038432,-375.0,0.00032876,2]
[340774986,1729797038440,-176.88285023,0.00032968,2]
[340774987,1729797038449,-183.81492598,0.00033068,2]
[340774988,1729797038458,-1000.0,0.00033217,2]
[340774989,1729797038467,-156.08,0.00033294,2]
[340774990,1729797038476,-12261.24,0.00033533,2]
[340774991,1729797038486,-159.87,0.00033722,2]
[340774992,1729797038495,-174.53,0.00033816,120]
[340774993,1729797038504,-200.0,0.00033966,2]
[340774994,1729797038513,-159.87,0.00035188,2]
[340774995,1729797038522,-155.80457662,0.00036329,2]
[340774996,1729797038531,-1000.0,0.00036538,2]
[340774997,1729797038541,-157.07,0.0003746,2]
[340774998,1729797038550,-634.03590513,0.000379,2]
[340774999,1729797038559,-4484.948,0.00038525,52]
[340775000,1729797038568,-1000.0,0.0003986,2]
[340775001,1729797038578,-156.08,0.00041897,2]
[340775002,1729797038587,-1739.0,0.000419,5]
[340775003,1729797038596,-26171.87710404,0.0004199,8]
[340775004,1729797038634,-380.31680077,0.0004199,8]
[340775005,1729797038645,-967.87871676,0.0004199,8]
[340775006,1729797038656,-6629.228122,0.0004199,8]
[340775008,1729797039667,-500.0,0.00038011,15]
[340775009,1729797039678,-620.89457413,0.00038011,15]
[340775010,1729797039714,-4588.83331553,0.00038011,15]
[340775011,1729797039729,-642.97607776,0.00038011,15]
[340775012,1729797039738,-690.34200092,0.0004199,8]
[340775013,1729797039750,-2025.26791969,0.0004199,8]
[340775014,1729797039805,-573.8801673,0.0004199,8]
[340775015,1729797039819,-1417.67562554,0.0004199,8]
[340775016,1729797039830,-1259.96086,0.0004199,8]
[340775017,1729797039841,-674.47609604,0.0004199,8]
[340775018,1729797039852,-4235.16822585,0.0004199,8]
[340775019,1729797039863,-33947.70112849,0.0004199,8]
[340775020,1729797039873,-210.82483417,0.00042009,14]
[340775021,1729797039882,-675.47702047,0.00043008,4]
[340775022,1729797039891,-3235.7682179,0.00043008,30]
[340775023,1729797039900,-509.57458488,0.00043008,120]
[340775024,1729797039910,-155.80457662,0.00043471,28]
[340775025,1729797039921,-156.88,0.00046214,2]
[340775026,1729797039930,-157.07,0.00048518,2]
[340775027,1729797039939,-150.0,0.00048595,2]
[340775028,1729797039949,-720.0,0.000488,30]
[340775029,1729797039959,-1000.0,0.000488,30]
[340775030,1729797039969,-45175.12939404,0.0005,120]
[340775031,1729797039979,-344.27288464,0.0005,2]
[340775032,1729797039990,-156.08,0.000505,2]
[340775033,1729797040001,-155.80457662,0.00050614,28]
[340775034,1729797040011,-2271.0,0.000537,11]
[340775035,1729797040020,-77.71127747,0.00053706,120]
[340775036,1729797040031,-289.85083593,0.00053706,120]
[340775037,1729797040042,-442.4378866,0.00053706,120]
[340775038,1729797040051,-1006.0,0.000544,7]
[340775039,1729797040062,-3.0803269,0.00054794,120]
[340775040,1729797040074,-2496.9196731,0.00054794,120]
[340775041,1729797040083,-500.0,0.00054795,120]
[340775042,1729797040094,-1004.0,0.00055,30]
[340775043,1729797040105,-1000.0,0.000554,7]
[340775044,1729797040115,-1500.0,0.00057534,120]
[340775045,1729797040124,-155.80457662,0.00057757,28]
[340775046,1729797040133,-167.45,0.00058177,2]
[340775047,1729797040143,-152.0,0.00058266,3]
[340775048,1729797040152,-156.08,0.00059102,2]
[340775050,1729797040161,-157.07,0.00059577,120]
[340775052,1729797040170,-757.04,0.00059863,60]
[340775054,1729797040179,-28855.04631566,0.0005988,2]
[340775056,1729797040189,-5934.47446118,0.0006,120]
[340775058,1729797040200,-6565.52553882,0.0006,120]
[340775060,1729797040209,-7500.0,0.0006,120]
[340775062,1729797040218,-39001.24474488,0.0006,120]
[340775064,1729797040227,-151.92,0.0006,120]
[340775066,1729797040236,-151.92,0.0006,120]
[340775068,1729797040245,-151.92,0.0006,120]
[340775070,1729797040254,-151.92,0.0006,120]
[340775072,1729797040263,-151.92,0.0006,120]
[340775074,1729797040273,-151.92,0.0006,120]
[340775076,1729797040283,-151.92,0.0006,120]
[340775078,1729797040292,-7500.0,0.00060088,120]
[340775080,1729797040302,-6144.85527968,0.00060125,120]
[340775082,1729797040315,-1275.2531778,0.00060125,120]
[340775084,1729797040327,-1439.96154252,0.00060125,120]
[340775086,1729797040336,-308.60472363,0.00060175,120]
[340775088,1729797040346,-1467.8621135,0.00060175,120]
[340775090,1729797040358,-2887.99024777,0.00060175,120]
[340775092,1729797040368,-2826.84764586,0.00060175,120]
[340775094,1729797040379,-8.69526924,0.00060175,120]
[340775096,1729797040388,-371.24697666,0.00060263,120]
[340775099,1729797040404,-1206.83348292,0.00060263,120]
[340775101,1729797040415,-1682.55954042,0.00060263,120]
[340775103,1729797040424,-150.28,0.00060822,60]
[340775105,1729797040433,-150.0,0.00060822,60]
[340775107,1729797040442,-150.0,0.00060822,60]
[340775109,1729797040452,-150.0,0.00060822,60]
[340775111,1729797040461,-180.0038,0.000617,10]
[340775113,1729797040470,-428.95,0.00061781,60]
[340775115,1729797040478,-645.94540096,0.00061781,60]
[340775117,1729797040489,-115.24459904,0.00061781,60]
[340775119,1729797040498,-380.30929961,0.00061781,60]
[340775121,1729797040510,-44.50070039,0.00061781,60]
[340775123,1729797040519,-424.81,0.00061781,60]
[340775125,1729797040528,-151.92,0.0006179,120]
[340775127,1729797040537,-151.92,0.0006179,120]
[340775129,1729797040546,-314.31099774,0.000618,120]
[340775131,1729797040557,-583.35023067,0.000618,120]
[340775134,1729797040568,-156.31877159,0.000618,120]
[340775135,1729797040577,-975.27351437,0.000618,117]
[340775138,1729797040588,-619.39818052,0.000618,117]
[340775140,1729797040599,-221.75123053,0.000618,117]
[340775142,1729797040608,-128123.44324116,0.000618,120]
[340775144,1729797040621,-1030.55933782,0.000618,120]
[340775148,1729797040650,-20634.96580657,0.000618,120]
[340775150,1729797040661,-650.0,0.000618,120]
[340775151,1729797040675,-365.00244668,0.000618,120]
[340775152,1729797040686,-54419.37825115,0.000618,120]
[340775153,1729797040695,-500.0,0.0006191,120]
[340775154,1729797040703,-500.0,0.0006191,120]
[340775155,1729797040712,-500.0,0.0006191,120]
[340775156,1729797040722,-500.0,0.0006191,120]
[340775157,1729797040731,-500.0,0.0006191,120]
[340775158,1729797040740,-500.0,0.0006191,120]
[340775159,1729797040749,-577.13794039,0.0006191,120]
[340775160,1729797040759,-520.78300177,0.0006193,120]
[340775161,1729797040768,-7710.19228147,0.00062,120]
[340775162,1729797040778,-7500.0,0.00062,120]
[340775163,1729797040787,-455.104863,0.000622,2]
[340775164,1729797040797,-150.0,0.00062221,30]
[340775165,1729797040806,-400.0,0.000623,50]
[340775166,1729797040815,-500.0,0.00062308,120]
[340775167,1729797040826,-293.6620724,0.00062318,30]
[340775168,1729797040836,-4484.948,0.0006235,120]
[340775169,1729797040960,-151.92,0.00062389,120]
[340775170,1729797040970,-500.0,0.00062399,120]
[340775171,1729797040979,-500.0,0.00062399,120]
[340775172,1729797040989,-500.0,0.00062399,120]
[340775173,1729797040998,-500.0,0.00062399,120]
[340775174,1729797041008,-500.0,0.00062399,120]
[340775175,1729797041017,-500.0,0.00062399,120]
[340775176,1729797041027,-500.0,0.00062399,120]
[340775177,1729797041036,-500.0,0.00062399,120]
[340775178,1729797041046,-500.0,0.00062399,120]
[340775179,1729797041055,-500.0,0.00062399,120]
[340775180,1729797041064,-500.0,0.00062399,120]
[340775181,1729797041073,-500.0,0.00062399,120]
[340775182,1729797041083,-500.0,0.00062399,120]
[340775183,1729797041092,-500.0,0.00062399,120]
[340775184,1729797041102,-500.0,0.00062399,120]